fUSD/lending_fUSD_20260506
["ID","MTS","AMOUNT","RATE_DAILY","PERIOD"]
[421686401,1778041849000,-642.0,0.00033309,30]
[421686397,1778041849000,-292.0,0.00033304,30]
[421686404,1778041849000,-161.66260185,0.00033323,30]
[421686426,1778041849000,-292.0,0.00034304,30]
[421686413,1778041849000,-511.56756463,0.000339,120]
[421686406,1778041849000,-5529.0,0.000335,5]
[421686410,1778041849000,-928.0,0.0003387,2]
[421686409,1778041849000,-1104.10525001,0.00033764,4]
[421686412,1778041849000,-2112.87073412,0.000339,120]
[421686411,1778041849000,-1039.25892984,0.000339,120]
[421686421,1778041849000,-500.0,0.00034109,120]
[421686414,1778041849000,-212.15154379,0.000339,120]
[421686422,1778041849000,-2084.0,0.00034182,7]
[421686424,1778041849000,-375.0,0.00034303,30]
[421686423,1778041849000,-150.0,0.0003419,2]
[421686425,1778041849000,-158.0,0.00034303,30]
[421686398,1778041849000,-372.0,0.00033304,30]
[421686408,1778041849000,-500.0,0.00033698,120]
[421686389,1778041849000,-60956.58,0.000332,7]
[421686362,1778041849000,-200.0,0.00032837,2]
[421686390,1778041849000,-1135.869414,0.000332,7]
[421686361,1778041849000,-1501.89267553,0.00032749,2]
[421686415,1778041849000,-397.98147991,0.000339,120]
[421686363,1778041849000,-500.0,0.00032876,120]
[421686364,1778041849000,-1000.0,0.00032877,120]
[421686365,1778041849000,-285.57,0.00032877,2]
[421686366,1778041849000,-267.136332,0.00032877,7]
[421686373,1778041849000,-500.0,0.00032877,2]
[421686372,1778041849000,-500.0,0.00032877,2]
[421686367,1778041849000,-267.136332,0.00032877,7]
[421686371,1778041849000,-500.0,0.00032877,2]
[421686375,1778041849000,-229.76505251,0.00032877,2]
[421686374,1778041849000,-500.0,0.00032877,2]
[421686368,1778041849000,-267.136332,0.00032877,7]
[421686400,1778041849000,-373.0,0.00033304,30]
[421686369,1778041849000,-267.136332,0.00032877,7]
[421686376,1778041849000,-806.42,0.00032877,2]
[421686378,1778041849000,-1039.25892984,0.00033,120]
[421686377,1778041849000,-150.0,0.00032877,30]
[421686379,1778041849000,-2112.87073412,0.00033,120]
[421686381,1778041849000,-212.15154379,0.00033,120]
[421686382,1778041849000,-397.98147991,0.00033,120]
[421686383,1778041849000,-2743.32486361,0.00033,120]
[421686387,1778041849000,-350.0,0.00033137,2]
[421686380,1778041849000,-511.56756463,0.00033,120]
[421686384,1778041849000,-152.0,0.00033069,30]
[421686385,1778041849000,-152.0,0.00033079,30]
[421686386,1778041849000,-4000.0,0.00033096,60]
[421686388,1778041849000,-380.0,0.000332,30]
[421686370,1778041849000,-500.0,0.00032877,2]
[421686416,1778041849000,-2743.32486361,0.000339,120]
[421686482,1778041849000,-500.0,0.00035616,7]
[421686418,1778041849000,-247.7129841,0.00034107,60]
[421686457,1778041849000,-150.0,0.00035315,120]
[421686455,1778041849000,-373.0,0.00035304,30]
[421686453,1778041849000,-372.0,0.00035304,30]
[421686456,1778041849000,-642.0,0.00035309,30]
[421686458,1778041849000,-520.0,0.00035323,30]
[421686460,1778041849000,-6043.0,0.00035457,2]
[421686459,1778041849000,-1221.0,0.00035457,2]
[421686461,1778041849000,-1352.0,0.00035457,2]
[421686466,1778041849000,-300.0,0.00035615,10]
[421686477,1778041849000,-500.0,0.00035616,7]
[421686476,1778041849000,-500.0,0.00035616,7]
[421686473,1778041849000,-500.0,0.00035616,7]
[421686471,1778041849000,-500.0,0.00035616,7]
[421686467,1778041849000,-161.35,0.00035616,30]
[421686465,1778041849000,-4497.93819322,0.0003561,2]
[421686469,1778041849000,-1000.0,0.00035616,120]
[421686474,1778041849000,-500.0,0.00035616,7]
[421686472,1778041849000,-500.0,0.00035616,7]
[421686470,1778041849000,-500.0,0.00035616,7]
[421686468,1778041849000,-213.81,0.00035616,120]
[421686475,1778041849000,-500.0,0.00035616,7]
[421686478,1778041849000,-500.0,0.00035616,7]
[421686480,1778041849000,-244.55269391,0.00035616,7]
[421686479,1778041849000,-500.0,0.00035616,7]
[421686483,1778041849000,-500.0,0.00035616,7]
[421686484,1778041849000,-500.0,0.00035616,7]
[421686485,1778041849000,-500.0,0.00035616,7]
[421686454,1778041849000,-1152.0,0.00035304,30]
[421686463,1778041849000,-369.46509716,0.00035506,10]
[421686481,1778041849000,-500.0,0.00035616,7]
[421686462,1778041849000,-300.0,0.00035506,10]
[421686464,1778041849000,-666.0,0.00035506,30]
[421686419,1778041849000,-801.0937156,0.00034107,60]
[421686420,1778041849000,-271.5036769,0.00034107,60]
[421686427,1778041849000,-372.0,0.00034304,30]
[421686428,1778041849000,-1152.0,0.00034304,30]
[421686430,1778041849000,-642.0,0.00034309,30]
[421686429,1778041849000,-373.0,0.00034304,30]
[421686432,1778041849000,-520.0,0.00034323,30]
[421686431,1778041849000,-153.0,0.00034323,30]
[421686436,1778041849000,-60956.58,0.000348,7]
[421686433,1778041849000,-500.0,0.00034461,120]
[421686438,1778041849000,-358.739,0.00034936,40]
[421686434,1778041849000,-152.0,0.00034602,8]
[421686435,1778041849000,-1500.0,0.00034795,2]
[421686417,1778041849000,-189.1331068,0.00034107,60]
[421686440,1778041849000,-1039.25892984,0.00035,120]
[421686437,1778041849000,-3299.765,0.00034936,40]
[421686449,1778041849000,-1500.0,0.000353,7]
[421686447,1778041849000,-1945.54516062,0.00035,2]
[421686444,1778041849000,-397.98147991,0.00035,120]
[421686441,1778041849000,-2112.87073412,0.00035,120]
[421686446,1778041849000,-20000.0,0.00035,30]
[421686448,1778041849000,-324.37751906,0.00035,7]
[421686451,1778041849000,-158.0,0.00035303,30]
[421686443,1778041849000,-212.15154379,0.00035,120]
[421686452,1778041849000,-292.0,0.00035304,30]
[421686445,1778041849000,-2743.32486361,0.00035,120]
[421686439,1778041849000,-500.0,0.00034986,2]
[421686442,1778041849000,-511.56756463,0.00035,120]
[421686450,1778041849000,-375.0,0.00035303,30]
[421686524,1778041850000,-158.0,0.00036303,30]
[421686534,1778041850000,-300.0,0.00036871,2]
[421686522,1778041850000,-4000.0,0.00036274,60]
[421686533,1778041850000,-1634.5399902,0.000368,2]
[421686520,1778041850000,-339.22605929,0.00036216,3]
[421686521,1778041850000,-356.90423716,0.00036216,3]
[421686510,1778041850000,-270.0,0.00036,2]
[421686518,1778041850000,-500.0,0.00036215,3]
[421686525,1778041850000,-292.0,0.00036304,30]
[421686523,1778041850000,-375.0,0.00036303,30]
[421686519,1778041850000,-195.44207369,0.00036215,3]
[421686532,1778041850000,-300.0,0.00036699,10]
[421686526,1778041850000,-372.0,0.00036304,30]
[421686527,1778041850000,-1152.0,0.00036304,30]
[421686531,1778041850000,-152.0,0.00036647,10]
[421686529,1778041850000,-642.0,0.00036309,30]
[421686530,1778041850000,-520.0,0.00036323,30]
[421686517,1778041850000,-500.0,0.00036215,3]
[421686535,1778041850000,-300.0,0.00036871,2]
[421686538,1778041850000,-300.0,0.00036931,10]
[421686537,1778041850000,-300.0,0.00036883,10]
[421686539,1778041850000,-150.0,0.00036985,2]
[421686540,1778041850000,-364.57394149,0.00036985,2]
[421686546,1778041850000,-435.0,0.00036986,120]
[421686536,1778041850000,-269.0,0.00036871,2]
[421686528,1778041850000,-373.0,0.00036304,30]
[421686514,1778041850000,-60956.58,0.000362,7]
[421686503,1778041850000,-212.15154379,0.00036,120]
[421686515,1778041850000,-500.0,0.00036215,3]
[421686541,1778041850000,-252.52660167,0.00036986,2]
[421686486,1778041850000,-500.0,0.00035616,7]
[421686488,1778041850000,-500.0,0.00035616,7]
[421686489,1778041850000,-500.0,0.00035616,7]
[421686487,1778041850000,-500.0,0.00035616,7]
[421686491,1778041850000,-500.0,0.00035616,7]
[421686492,1778041850000,-500.0,0.00035616,7]
[421686494,1778041850000,-285.57,0.00035616,2]
[421686496,1778041850000,-300.0,0.00035899,10]
[421686490,1778041850000,-500.0,0.00035616,7]
[421686495,1778041850000,-152.0,0.00035624,9]
[421686493,1778041850000,-500.0,0.00035616,7]
[421686513,1778041850000,-300.0,0.00036199,10]
[421686497,1778041850000,-150.0,0.00035899,2]
[421686501,1778041850000,-2112.87073412,0.00036,120]
[421686498,1778041850000,-484.23038226,0.000359,30]
[421686502,1778041850000,-511.56756463,0.00036,120]
[421686504,1778041850000,-397.98147991,0.00036,120]
[421686507,1778041850000,-155.88,0.00036,2]
[421686505,1778041850000,-2743.32486361,0.00036,120]
[421686506,1778041850000,-161.49,0.00036,2]
[421686508,1778041850000,-300.0,0.00036,2]
[421686511,1778041850000,-50000.0,0.00036,2]
[421686509,1778041850000,-300.0,0.00036,2]
[421686512,1778041850000,-2084.0,0.00036153,30]
[421686516,1778041850000,-500.0,0.00036215,3]
[421686499,1778041850000,-300.0,0.00035999,10]
[421686500,1778041850000,-1039.25892984,0.00036,120]
[421686543,1778041850000,-600.0,0.00036986,120]
[421686542,1778041850000,-600.0,0.00036986,120]
[421686571,1778041850000,-500.0,0.00037947,120]
[421686580,1778041850000,-928.0,0.00038081,2]
[421686575,1778041850000,-835.0,0.00037981,2]
[421686581,1778041850000,-2084.0,0.00038125,30]
[421686578,1778041850000,-10000.0,0.00038,15]
[421686576,1778041850000,-200.0,0.00037986,2]
[421686582,1778041850000,-591.9658418,0.00038196,5]
[421686583,1778041850000,-2112.87073412,0.000382,120]
[421686588,1778041850000,-169.68,0.00038356,30]
[421686587,1778041850000,-439.39,0.00038276,60]
[421686594,1778041850000,-500.0,0.00038356,2]
[421686585,1778041850000,-2743.32486361,0.000382,120]
[421686586,1778041850000,-1456.85287576,0.00038214,5]
[421686593,1778041850000,-500.0,0.00038356,2]
[421686590,1778041850000,-750.0,0.00038356,2]
[421686589,1778041850000,-157.28911466,0.00038356,120]
[421686591,1778041850000,-750.0,0.00038356,2]
[421686592,1778041850000,-663.0,0.00038356,2]
[421686596,1778041850000,-1000.0,0.00038356,120]
[421686595,1778041850000,-491.0,0.00038356,2]
[421686597,1778041850000,-310.0,0.00038356,50]
[421686598,1778041850000,-152.14169922,0.00038366,120]
[421686599,1778041850000,-156.40820005,0.00038366,120]
[421686600,1778041850000,-152.14169922,0.00038366,120]
[421686545,1778041850000,-600.0,0.00036986,120]
[421686573,1778041850000,-950.0,0.00037981,2]
[421686574,1778041850000,-950.0,0.00037981,2]
[421686584,1778041850000,-380.0,0.000382,30]
[421686577,1778041850000,-60956.58,0.00038,7]
[421686547,1778041850000,-155.88,0.00037,2]
[421686579,1778041850000,-1004.08156236,0.00038,2]
[421686544,1778041850000,-600.0,0.00036986,120]
[421686548,1778041850000,-365.0,0.00037,2]
[421686549,1778041850000,-4685.30481988,0.00037,3]
[421686559,1778041850000,-1152.0,0.00037304,30]
[421686551,1778041850000,-2112.87073412,0.000371,120]
[421686557,1778041850000,-292.0,0.00037304,30]
[421686554,1778041850000,-189.47926864,0.000372,120]
[421686550,1778041850000,-216.24548883,0.00037088,120]
[421686553,1778041850000,-375.23,0.00037138,30]
[421686558,1778041850000,-372.0,0.00037304,30]
[421686555,1778041850000,-375.0,0.00037303,30]
[421686552,1778041850000,-2743.32486361,0.000371,120]
[421686569,1778041850000,-450.0,0.00037808,2]
[421686561,1778041850000,-163.0,0.00037309,30]
[421686560,1778041850000,-373.0,0.00037304,30]
[421686565,1778041850000,-1501.89267553,0.00037628,2]
[421686563,1778041850000,-520.0,0.00037323,30]
[421686562,1778041850000,-642.0,0.00037309,30]
[421686566,1778041850000,-152.0,0.0003767,11]
[421686564,1778041850000,-4400.98482659,0.0003759,2]
[421686570,1778041850000,-440.0,0.00037808,2]
[421686567,1778041850000,-150.0,0.00037694,2]
[421686556,1778041850000,-158.0,0.00037303,30]
[421686568,1778041850000,-450.0,0.00037808,2]
[421686572,1778041850000,-156.96950751,0.0003795,120]
[421686638,1778041851000,-300.0,0.00038376,2]
[421686646,1778041851000,-300.0,0.00038376,2]
[421686630,1778041851000,-300.0,0.00038376,2]
[421686643,1778041851000,-300.0,0.00038376,2]
[421686636,1778041851000,-300.0,0.00038376,2]
[421686645,1778041851000,-474.98520692,0.00038376,2]
[421686628,1778041851000,-300.0,0.00038376,2]
[421686639,1778041851000,-300.0,0.00038376,2]
[421686635,1778041851000,-724.83131769,0.00038376,2]
[421686634,1778041851000,-309.13065885,0.00038376,2]
[421686637,1778041851000,-301.2859328,0.00038376,2]
[421686640,1778041851000,-300.06118393,0.00038376,2]
[421686641,1778041851000,-300.0,0.00038376,2]
[421686652,1778041851000,-300.0,0.00038376,2]
[421686647,1778041851000,-852.7601399,0.00038376,2]
[421686644,1778041851000,-300.0,0.00038376,2]
[421686649,1778041851000,-1793.38851355,0.00038376,2]
[421686651,1778041851000,-343.40295571,0.00038376,2]
[421686659,1778041851000,-300.0,0.00038376,2]
[421686648,1778041851000,-300.0,0.00038376,2]
[421686650,1778041851000,-300.0,0.00038376,2]
[421686654,1778041851000,-300.0,0.00038376,2]
[421686653,1778041851000,-300.0,0.00038376,2]
[421686658,1778041851000,-862.96230178,0.00038376,2]
[421686655,1778041851000,-1145.24599896,0.00038376,2]
[421686656,1778041851000,-309.07064608,0.00038376,2]
[421686627,1778041851000,-300.0,0.00038376,2]
[421686642,1778041851000,-300.0,0.00038376,2]
[421686625,1778041851000,-603.45144378,0.00038376,2]
[421686605,1778041851000,-1092.83356842,0.00038376,2]
[421686623,1778041851000,-300.0,0.00038376,2]
[421686657,1778041851000,-300.0,0.00038376,2]
[421686604,1778041851000,-300.0,0.00038376,2]
[421686606,1778041851000,-300.0,0.00038376,2]
[421686601,1778041851000,-300.0,0.00038376,2]
[421686602,1778041851000,-300.0,0.00038376,2]
[421686603,1778041851000,-300.0,0.00038376,2]
[421686608,1778041851000,-300.0,0.00038376,2]
[421686618,1778041851000,-300.0,0.00038376,2]
[421686607,1778041851000,-300.0,0.00038376,2]
[421686609,1778041851000,-300.0,0.00038376,2]
[421686619,1778041851000,-300.0,0.00038376,2]
[421686620,1778041851000,-491.85958444,0.00038376,2]
[421686610,1778041851000,-300.0,0.00038376,2]
[421686614,1778041851000,-300.0,0.00038376,2]
[421686611,1778041851000,-300.0,0.00038376,2]
[421686613,1778041851000,-300.0,0.00038376,2]
[421686616,1778041851000,-300.0,0.00038376,2]
[421686612,1778041851000,-300.0,0.00038376,2]
[421686615,1778041851000,-300.0,0.00038376,2]
[421686617,1778041851000,-300.0,0.00038376,2]
[421686631,1778041851000,-1065.13491717,0.00038376,2]
[421686621,1778041851000,-300.0,0.00038376,2]
[421686632,1778041851000,-891.9241332,0.00038376,2]
[421686633,1778041851000,-300.0,0.00038376,2]
[421686624,1778041851000,-300.0,0.00038376,2]
[421686622,1778041851000,-300.0,0.00038376,2]
[421686629,1778041851000,-526.86051061,0.00038376,2]
[421686626,1778041851000,-300.0,0.00038376,2]
[421686660,1778041851000,-300.0,0.00038376,2]
[421686675,1778041851000,-300.0,0.00038376,2]
[421686663,1778041851000,-310.3725982,0.00038376,2]
[421686693,1778041851000,-300.0,0.00038376,2]
[421686699,1778041851000,-300.0,0.00038376,2]
[421686697,1778041851000,-300.0,0.00038376,2]
[421686701,1778041851000,-300.0,0.00038376,2]
[421686705,1778041851000,-603.45144378,0.00038376,2]
[421686696,1778041851000,-300.0,0.00038376,2]
[421686700,1778041851000,-491.85958444,0.00038376,2]
[421686698,1778041851000,-300.0,0.00038376,2]
[421686704,1778041851000,-300.0,0.00038376,2]
[421686702,1778041851000,-300.0,0.00038376,2]
[421686703,1778041851000,-300.0,0.00038376,2]
[421686706,1778041851000,-300.0,0.00038376,2]
[421686707,1778041851000,-300.0,0.00038376,2]
[421686716,1778041851000,-724.83131769,0.00038376,2]
[421686708,1778041851000,-300.0,0.00038376,2]
[421686709,1778041851000,-476.87909536,0.00038376,2]
[421686711,1778041851000,-300.0,0.00038376,2]
[421686715,1778041851000,-309.13065885,0.00038376,2]
[421686713,1778041851000,-891.9241332,0.00038376,2]
[421686717,1778041851000,-300.0,0.00038376,2]
[421686714,1778041851000,-300.00000001,0.00038376,2]
[421686710,1778041851000,-526.86051061,0.00038376,2]
[421686712,1778041851000,-1065.13491717,0.00038376,2]
[421686718,1778041851000,-301.2859328,0.00038376,2]
[421686720,1778041851000,-300.0,0.00038376,2]
[421686719,1778041851000,-300.0,0.00038376,2]
[421686722,1778041851000,-300.0,0.00038376,2]
[421686695,1778041851000,-300.0,0.00038376,2]
[421686694,1778041851000,-300.0,0.00038376,2]
[421686662,1778041851000,-300.0,0.00038376,2]
[421686691,1778041851000,-300.0,0.00038376,2]
[421686661,1778041851000,-300.0,0.00038376,2]
[421686670,1778041851000,-451.13853711,0.00038376,2]
[421686669,1778041851000,-300.0,0.00038376,2]
[421686671,1778041851000,-300.0,0.00038376,2]
[421686672,1778041851000,-300.0,0.00038376,2]
[421686664,1778041851000,-300.0,0.00038376,2]
[421686665,1778041851000,-300.0,0.00038376,2]
[421686692,1778041851000,-300.0,0.00038376,2]
[421686668,1778041851000,-481.18706949,0.00038376,2]
[421686666,1778041851000,-463.08064867,0.00038376,2]
[421686674,1778041851000,-300.0,0.00038376,2]
[421686683,1778041851000,-300.0,0.00038376,2]
[421686684,1778041851000,-300.0,0.00038376,2]
[421686682,1778041851000,-300.0,0.00038376,2]
[421686667,1778041851000,-300.0,0.00038376,2]
[421686677,1778041851000,-483.27319916,0.00038376,2]
[421686673,1778041851000,-300.0,0.00038376,2]
[421686689,1778041851000,-300.0,0.00038376,2]
[421686686,1778041851000,-300.0,0.00038376,2]
[421686687,1778041851000,-300.0,0.00038376,2]
[421686688,1778041851000,-300.0,0.00038376,2]
[421686685,1778041851000,-1092.83356842,0.00038376,2]
[421686690,1778041851000,-300.0,0.00038376,2]
[421686678,1778041851000,-309.32134718,0.00038376,2]
[421686680,1778041851000,-300.0,0.00038376,2]
[421686681,1778041851000,-300.0,0.00038376,2]
[421686676,1778041851000,-300.0,0.00038376,2]
[421686721,1778041851000,-300.06118393,0.00038376,2]
[421686679,1778041851000,-300.0,0.00038376,2]
[421686762,1778041852000,-156.96950751,0.00038417,120]
[421686763,1778041852000,-1221.0,0.00038457,2]
[421686764,1778041852000,-6043.0,0.00038457,2]
[421686765,1778041852000,-1352.0,0.00038457,2]
[421686761,1778041852000,-271.5036769,0.00038377,120]
[421686766,1778041852000,-150.0,0.000385,120]
[421686760,1778041852000,-801.0937156,0.00038377,120]
[421686759,1778041852000,-247.712984,0.00038377,120]
[421686757,1778041852000,-210.1366791,0.00038377,120]
[421686755,1778041852000,-300.0,0.00038376,2]
[421686756,1778041852000,-186.7459471,0.00038377,120]
[421686758,1778041852000,-189.1331068,0.00038377,120]
[421686769,1778041852000,-152.0,0.00038561,7]
[421686791,1778041852000,-1012.41630502,0.00039726,15]
[421686768,1778041852000,-152.0,0.00038561,7]
[421686779,1778041852000,-156.40820005,0.00039188,120]
[421686772,1778041852000,-152.0,0.00038584,7]
[421686770,1778041852000,-152.0,0.00038572,7]
[421686771,1778041852000,-152.0,0.00038572,7]
[421686778,1778041852000,-150.0,0.00039,120]
[421686774,1778041852000,-150.0,0.0003875,120]
[421686777,1778041852000,-156.96950751,0.00038883,120]
[421686773,1778041852000,-152.0,0.00038693,12]
[421686775,1778041852000,-1208.0,0.00038834,2]
[421686776,1778041852000,-200.0,0.00038839,2]
[421686781,1778041852000,-2000.0,0.000393,7]
[421686750,1778041852000,-451.13853711,0.00038376,2]
[421686767,1778041852000,-152.0,0.00038561,7]
[421686747,1778041852000,-300.0,0.00038376,2]
[421686732,1778041852000,-343.40295571,0.00038376,2]
[421686749,1778041852000,-300.0,0.00038376,2]
[421686792,1778041852000,-1012.41630502,0.00039726,15]
[421686725,1778041852000,-300.0,0.00038376,2]
[421686726,1778041852000,-474.98520692,0.00038376,2]
[421686728,1778041852000,-852.7601399,0.00038376,2]
[421686727,1778041852000,-300.0,0.00038376,2]
[421686723,1778041852000,-300.0,0.00038376,2]
[421686724,1778041852000,-300.0,0.00038376,2]
[421686731,1778041852000,-300.0,0.00038376,2]
[421686741,1778041852000,-300.0,0.00038376,2]
[421686739,1778041852000,-300.0,0.00038376,2]
[421686740,1778041852000,-300.0,0.00038376,2]
[421686730,1778041852000,-1793.38851355,0.00038376,2]
[421686736,1778041852000,-309.07064608,0.00038376,2]
[421686735,1778041852000,-1145.24599896,0.00038376,2]
[421686737,1778041852000,-300.0,0.00038376,2]
[421686738,1778041852000,-862.96230178,0.00038376,2]
[421686733,1778041852000,-300.0,0.00038376,2]
[421686734,1778041852000,-300.0,0.00038376,2]
[421686743,1778041852000,-310.3725982,0.00038376,2]
[421686753,1778041852000,-300.0,0.00038376,2]
[421686745,1778041852000,-300.0,0.00038376,2]
[421686746,1778041852000,-463.08064867,0.00038376,2]
[421686742,1778041852000,-300.0,0.00038376,2]
[421686744,1778041852000,-300.0,0.00038376,2]
[421686754,1778041852000,-300.0,0.00038376,2]
[421686751,1778041852000,-300.0,0.00038376,2]
[421686748,1778041852000,-481.18706949,0.00038376,2]
[421686752,1778041852000,-300.0,0.00038376,2]
[421686793,1778041852000,-1012.41630502,0.00039726,15]
[421686729,1778041852000,-300.0,0.00038376,2]
[421686784,1778041852000,-2743.32486361,0.000394,120]
[421686825,1778041852000,-1012.41630502,0.00039726,15]
[421686829,1778041852000,-1012.41630502,0.00039726,15]
[421686828,1778041852000,-1012.41630502,0.00039726,15]
[421686818,1778041852000,-1012.41630502,0.00039726,15]
[421686819,1778041852000,-1012.41630502,0.00039726,15]
[421686827,1778041852000,-1012.41630502,0.00039726,15]
[421686820,1778041852000,-1012.41630502,0.00039726,15]
[421686824,1778041852000,-1012.41630502,0.00039726,15]
[421686826,1778041852000,-1012.41630502,0.00039726,15]
[421686822,1778041852000,-1012.41630502,0.00039726,15]
[421686823,1778041852000,-1012.41630502,0.00039726,15]
[421686821,1778041852000,-1012.41630502,0.00039726,15]
[421686831,1778041852000,-1012.41630502,0.00039726,15]
[421686816,1778041852000,-1012.41630502,0.00039726,15]
[421686841,1778041852000,-1012.41630502,0.00039726,15]
[421686834,1778041852000,-1012.41630502,0.00039726,15]
[421686830,1778041852000,-1012.41630502,0.00039726,15]
[421686833,1778041852000,-1012.41630502,0.00039726,15]
[421686842,1778041852000,-1587.33499356,0.00039726,15]
[421686839,1778041852000,-1012.41630502,0.00039726,15]
[421686835,1778041852000,-1012.41630502,0.00039726,15]
[421686836,1778041852000,-1012.41630502,0.00039726,15]
[421686838,1778041852000,-1012.41630502,0.00039726,15]
[421686845,1778041852000,-1587.33499356,0.00039726,15]
[421686840,1778041852000,-1012.41630502,0.00039726,15]
[421686837,1778041852000,-1012.41630502,0.00039726,15]
[421686785,1778041852000,-4000.0,0.00039425,60]
[421686844,1778041852000,-1587.33499356,0.00039726,15]
[421686832,1778041852000,-1012.41630502,0.00039726,15]
[421686810,1778041852000,-1012.41630502,0.00039726,15]
[421686843,1778041852000,-1587.33499356,0.00039726,15]
[421686817,1778041852000,-1012.41630502,0.00039726,15]
[421686812,1778041852000,-1012.41630502,0.00039726,15]
[421686782,1778041852000,-156.96950751,0.0003935,120]
[421686783,1778041852000,-2112.87073412,0.000394,120]
[421686786,1778041852000,-152.14169922,0.00039462,120]
[421686787,1778041852000,-288.67295677,0.000395,120]
[421686789,1778041852000,-200.0,0.00039692,2]
[421686790,1778041852000,-152.0,0.00039716,13]
[421686788,1778041852000,-150.0,0.00039579,2]
[421686795,1778041852000,-1012.41630502,0.00039726,15]
[421686794,1778041852000,-1012.41630502,0.00039726,15]
[421686796,1778041852000,-1012.41630502,0.00039726,15]
[421686797,1778041852000,-1012.41630502,0.00039726,15]
[421686805,1778041852000,-1012.41630502,0.00039726,15]
[421686798,1778041852000,-1012.41630502,0.00039726,15]
[421686780,1778041852000,-150.0,0.0003925,120]
[421686806,1778041852000,-1012.41630502,0.00039726,15]
[421686807,1778041852000,-1012.41630502,0.00039726,15]
[421686815,1778041852000,-1012.41630502,0.00039726,15]
[421686808,1778041852000,-1012.41630502,0.00039726,15]
[421686814,1778041852000,-1012.41630502,0.00039726,15]
[421686801,1778041852000,-1012.41630502,0.00039726,15]
[421686809,1778041852000,-1012.41630502,0.00039726,15]
[421686811,1778041852000,-1012.41630502,0.00039726,15]
[421686804,1778041852000,-1012.41630502,0.00039726,15]
[421686802,1778041852000,-1012.41630502,0.00039726,15]
[421686799,1778041852000,-1012.41630502,0.00039726,15]
[421686803,1778041852000,-1012.41630502,0.00039726,15]
[421686800,1778041852000,-1012.41630502,0.00039726,15]
[421686813,1778041852000,-1012.41630502,0.00039726,15]
[421686884,1778041853000,-200141.71610244,0.000399,120]
[421686885,1778041853000,-546.69,0.00039978,120]
[421686880,1778041853000,-1599.93289031,0.00039726,15]
[421686881,1778041853000,-156.96950751,0.00039816,120]
[421686872,1778041853000,-1587.33499356,0.00039726,15]
[421686887,1778041853000,-152.0,0.0004,120]
[421686883,1778041853000,-546.69,0.00039878,120]
[421686879,1778041853000,-1599.93289033,0.00039726,15]
[421686886,1778041853000,-3646.09057343,0.00039999,120]
[421686878,1778041853000,-1599.93289033,0.00039726,15]
[421686882,1778041853000,-375.23,0.00039878,30]
[421686889,1778041853000,-155.0,0.0004,120]
[421686893,1778041853000,-1777.0864347,0.0004,120]
[421686888,1778041853000,-590.86,0.0004,120]
[421686890,1778041853000,-1033.0,0.0004,30]
[421686892,1778041853000,-2000.0,0.0004,120]
[421686896,1778041853000,-1197.23113225,0.0004,120]
[421686891,1778041853000,-297.45097561,0.0004,2]
[421686898,1778041853000,-413.25656224,0.0004,120]
[421686897,1778041853000,-11996.04536972,0.0004,4]
[421686895,1778041853000,-889.395116,0.0004,120]
[421686894,1778041853000,-5321.04932443,0.0004,120]
[421686900,1778041853000,-1583.60000411,0.0004,2]
[421686902,1778041853000,-1178.78069179,0.0004,120]
[421686873,1778041853000,-1587.33499356,0.00039726,15]
[421686899,1778041853000,-395.81661262,0.0004,2]